[Event "Romanian Championship 2024"]
[Site "Eforie Nord"]
[Date "2024.02.26"]
[Round "4.22"]
[White "Visanescu, Dragos-Nicholas"]
[Black "Sava, Robert-Gabriel"]
[Result "0-1"]
[ECO "C02"]
[WhiteElo "1759"]
[BlackElo "2053"]
[Annotator "RC"]
[PlyCount "92"]
[EventDate "2024.02.24"]
[EventType "swiss"]
[EventCountry "ROU"]
[SourceTitle "playchess.com"]
[Source "ChessBase"]
[SourceQuality "1"]
[TimeControl "40/5400+30:900+30"]

1. e4 {[%emt 0:00:01]} e6 {[%emt 0:00:09]} 2. d4 {[%emt 0:00:06]} d5 {[%emt 0:00:10]} 3. e5 {[%emt 0:00:04]} c5 {[%emt 0:00:05]} 4. c3 {[%emt 0:00:04]} Nc6 {[%emt 0:00:17]} 5. Nf3 {[%emt 0:00:08]} Qb6 {[%emt 0:00:20]} 6. a3 {[%emt 0:00:11]} c4 {[%emt 0:00:13]} 7. Nbd2 {[%emt 0:00:08]} Na5 {[%emt 0:00:32]} 8. Rb1 {[%emt 0:00:29]} Bd7 {[%emt 0:00:37]} 9. Be2 {[%emt 0:01:31]} Ne7 {[%emt 0:00:26]} 10. Kf1 {[%emt 0:02:25]} h6 {[%emt 1:32:41]} 11. h4 {[%emt 0:00:31]} Qc7 {[%emt 0:00:00]} 12. h5 {[%emt 0:01:31]} Nc8 {[%emt 0:00:00]} 13. Qe1 {[%emt 0:02:13]} Nb6 {[%emt 0:00:00]} 14. Bd1 {[%emt 0:01:34]} O-O-O {[%emt 0:00:00]} 15. Nh4 {[%emt 0:01:49]} Be7 {[%emt 0:00:00]} 16. g3 {[%emt 0:03:00]} Ba4 {[%emt 0:00:00]} 17. Kg2 {[%emt 0:01:40]} Rdg8 {[%emt 0:00:00]} 18. Bxa4 {[%emt 0:11:28]} Nxa4 {[%emt 0:00:00]} 19. Qd1 {[%emt 0:00:34]} Qd7 {[%emt 0:00:00]} 20. Qf3 {[%emt 0:02:35]} Bd8 {[%emt 0:00:00]} 21. b4 {[%emt 0:21:29]} cxb3 {[%emt 0:00:00]} 22. Nxb3 {[%emt 0:00:08]} Nc4 {[%emt 0:00:00]} 23. Nd2 {[%emt 0:01:46]} Nab6 {[%emt 0:00:00]} 24. Nb3 {[%emt 0:07:20]} Na4 {[%emt 0:00:00]} 25. Nd2 {[%emt 0:01:12]} Nxd2 {[%emt 0:00:00]} 26. Bxd2 {[%emt 0:00:10]} g5 {[%emt 0:00:00]} 27. hxg6 {[%emt 0:01:17]} fxg6 {[%emt 0:00:00]} 28. Qd3 {[%emt 0:05:07]} g5 {[%emt 0:00:00]} 29. Nf3 {[%emt 0:00:39]} h5 {[%emt 0:00:00]} 30. c4 {[%emt 0:05:52]} Nb6 {[%emt 0:00:00]} 31. c5 {[%emt 0:08:03]} Nc4 {[%emt 0:00:00]} 32. a4 {[%emt 0:02:14]} h4 {[%emt 0:00:00]} 33. g4 {[%emt 0:02:11]} Rg7 {[%emt 0:00:00]} 34. Rb5 {[%emt 0:05:14]} Qc6 {[%emt 0:00:00]} 35. Rhb1 {[%emt 0:05:10]} Rf8 {[%emt 0:00:00]} 36. Bxg5 {[%emt 0:05:58]} a6 {[%emt 0:00:00]} 37. Bxd8 {[%emt 0:01:06]} Rxd8 {[%emt 0:00:00]} 38. Rb6 {[%emt 0:01:20]} Nxb6 {[%emt 0:00:00]} 39. Rxb6 {[%emt 0:00:08]} Qc7 {[%emt 0:00:00]} 40. a5 {[%emt 0:00:00]} Rxg4+ {[%emt 0:00:00]} 41. Kh1 {[%emt 0:03:12]} Rdg8 {[%emt 0:00:00]} 42. c6 {[%emt 0:13:14]} Qg7 {[%emt 0:00:00]} 43. Qf1 {[%emt 0:01:31]} Qf7 {[%emt 0:00:00]} 44. cxb7+ {[%emt 0:00:30]} Kb8 {[%emt 0:00:00]} 45. Qd1 {[%emt 0:00:21]} Rg1+ {[%emt 0:00:00]} 46. Nxg1 {[%emt 0:00:42]} Qxf2 {[%emt 0:00:00]} 0-1

[Event "Romanian Championship 2024"]
[Site "Eforie Nord"]
[Date "2024.02.26"]
[Round "4.23"]
[White "Gheorghe, Andrei-Constantin"]
[Black "Buzbuchi, Ionut"]
[Result "0-1"]
[ECO "B22"]
[WhiteElo "1523"]
[BlackElo "2039"]
[Annotator "NA RC"]
[PlyCount "56"]
[EventDate "2024.02.24"]
[EventType "swiss"]
[EventCountry "ROU"]
[SourceTitle "playchess.com"]
[Source "ChessBase"]
[SourceQuality "1"]
[TimeControl "40/5400+30:900+30"]

1. e4 {[%emt 0:00:06]} c5 {[%emt 0:00:04]} 2. c3 {[%emt 0:00:09]} Nf6 {[%emt 0:00:04]} 3. d3 {[%emt 0:00:40]} Nc6 {[%emt 0:00:07]} 4. f4 {[%emt 0:01:01]} d5 {[%emt 0:05:05]} 5. e5 {[%emt 0:00:05]} Ng8 {[%emt 0:00:04]} 6. Be2 {[%emt 0:00:53]} g6 {[%emt 0:01:07]} 7. Nf3 {[%emt 0:00:10]} Bg4 {[%emt 0:00:13]} 8. O-O {[%emt 0:00:43]} e6 {[%emt 0:00:24]} 9. Kh1 {[%emt 0:00:29]} Nge7 {[%emt 0:01:10]} 10. d4 {[%emt 0:00:21]} Nf5 {[%emt 0:00:24]} 11. Na3 {[%emt 0:02:14]} Bxf3 {[%emt 0:08:35]} 12. Rxf3 {[%emt 0:00:35]} cxd4 {[%emt 0:00:21]} 13. g4 {[%emt 0:00:55]} Nh4 {[%emt 0:00:41]} 14. Rh3 {[%emt 0:00:25]} dxc3 {[%emt 0:00:40]} 15. bxc3 {[%emt 0:00:05]} Be7 {[%emt 0:01:34]} 16. Nb5 {[%emt 0:00:18]} g5 {[%emt 0:24:49]} 17. Nd6+ {[%emt 0:00:21]} Bxd6 {[%emt 0:00:13]} 18. exd6 {[%emt 0:00:03]} Qxd6 {[%emt 0:00:05]} 19. a4 {[%emt 0:02:42]} O-O-O {[%emt 0:03:46]} 20. f5 {[%emt 0:00:35]} h6 {[%emt 0:01:13]} 21. Rb1 {[%emt 0:04:15]} exf5 {[%emt 0:08:25]} 22. gxf5 {[%emt 0:00:02]} Rhe8 {[%emt 0:00:30]} 23. Qd3 {[%emt 0:02:15]} d4 {[%emt 0:02:54]} 24. c4 {[%emt 0:02:34]} Ne5 {[%emt 0:03:19]} 25. Qb3 {[%emt 1:21:04]} Qc6+ {[%emt 0:37:13]} 26. Kg1 {[%emt 0:00:30]} d3 {[%emt 0:00:30]} 27. Bf1 {[%emt 0:00:00]} Nef3+ {[%emt 0:00:00]} 28. Kf2 {[%emt 0:00:00]} Qc5+ {[%emt 0:00:00]} 0-1

[Event "Romanian Championship 2024"]
[Site "Eforie Nord"]
[Date "2024.02.27"]
[Round "5.1"]
[White "Lupulescu, Constantin"]
[Black "Bulmaga, Irina"]
[Result "1-0"]
[ECO "D35"]
[WhiteElo "2589"]
[BlackElo "2439"]
[Annotator "RC"]
[PlyCount "209"]
[EventDate "2024.02.24"]
[EventType "swiss"]
[EventCountry "ROU"]
[SourceTitle "playchess.com"]
[Source "ChessBase"]
[SourceQuality "1"]
[TimeControl "40/5400+30:900+30"]

1. d4 {[%emt 0:00:30]} Nf6 {[%emt 0:00:08]} 2. c4 {[%emt 0:00:00]} e6 {[%emt 0:00:06]} 3. Nc3 {[%emt 0:00:00]} d5 {[%emt 0:00:08]} 4. cxd5 {[%emt 0:00:00]} exd5 {[%emt 0:00:07]} 5. Bg5 {[%emt 0:00:00]} Be7 {[%emt 0:00:29]} 6. e3 {[%emt 0:00:14]} h6 {[%emt 0:00:26]} 7. Bh4 {[%emt 0:00:17]} O-O {[%emt 0:00:24]} 8. Bd3 {[%emt 0:00:23]} Re8 {[%emt 0:00:24]} 9. Nge2 {[%emt 0:01:42]} c6 {[%emt 0:00:39]} 10. O-O {[%emt 0:07:12]} a5 {[%emt 0:00:24]} 11. Qc2 {[%emt 0:02:07]} Na6 {[%emt 0:02:46]} 12. a3 {[%emt 0:01:16]} Bd7 {[%emt 0:03:40]} 13. Rac1 {[%emt 0:08:15]} b5 {[%emt 0:15:05]} 14. h3 {[%emt 0:11:11]} Nh5 {[%emt 0:04:38]} 15. Bxe7 {[%emt 0:02:08]} Qxe7 {[%emt 0:00:09]} 16. Bh7+ {[%emt 0:02:30]} Kh8 {[%emt 0:00:49]} 17. Bf5 {[%emt 0:00:06]} Bxf5 {[%emt 0:17:28]} 18. Qxf5 {[%emt 0:00:05]} g6 {[%emt 0:00:08]} 19. Qd3 {[%emt 0:03:01]} a4 {[%emt 0:01:30]} 20. Rc2 {[%emt 0:03:42]} Nf6 {[%emt 0:13:14]} 21. Rfc1 {[%emt 0:13:54]} Qd7 {[%emt 0:04:04]} 22. Nb1 {[%emt 0:02:09]} Nb8 {[%emt 0:02:24]} 23. Nd2 {[%emt 0:01:35]} Qd6 {[%emt 0:02:52]} 24. Nc3 {[%emt 0:03:54]} Kg7 {[%emt 0:12:15]} 25. Na2 {[%emt 0:05:15]} Ra7 {[%emt 0:01:04]} 26. Nb4 {[%emt 0:01:32]} Rc7 {[%emt 0:00:48]} 27. b3 {[%emt 0:06:42]} axb3 {[%emt 0:00:50]} 28. Nxb3 {[%emt 0:00:40]} Nfd7 {[%emt 0:03:55]} 29. Na5 {[%emt 0:04:17]} Rec8 {[%emt 0:00:09]} 30. e4 {[%emt 0:20:53]} dxe4 {[%emt 0:00:49]} 31. Qxe4 {[%emt 0:00:00]} Nf6 {[%emt 0:01:10]} 32. Qe5 {[%emt 0:00:00]} Qxe5 {[%emt 0:01:23]} 33. dxe5 {[%emt 0:00:00]} Nfd7 {[%emt 0:00:38]} 34. Naxc6 {[%emt 0:00:00]} Nxc6 {[%emt 0:07:18]} 35. Rxc6 {[%emt 0:00:00]} Rxc6 {[%emt 0:00:12]} 36. Rxc6 {[%emt 0:00:00]} Re8 {[%emt 0:02:32]} 37. e6 {[%emt 0:00:00]} Ne5 {[%emt 0:02:27]} 38. exf7 {[%emt 0:00:00]} Kxf7 {[%emt 0:00:15]} 39. Rc7+ {[%emt 0:00:00]} Ke6 {[%emt 0:00:27]} 40. Ra7 {[%emt 0:00:00]} Nc4 {[%emt 0:00:00]} 41. g3 {[%emt 0:08:49]} Ke5 {[%emt 0:05:16]} 42. a4 {[%emt 0:06:04]} bxa4 {[%emt 0:00:04]} 43. Rxa4 {[%emt 0:00:03]} Nd6 {[%emt 0:04:58]} 44. Nd3+ {[%emt 0:01:38]} Kf6 {[%emt 0:00:07]} 45. Ra6 {[%emt 0:00:21]} Rd8 {[%emt 0:00:21]} 46. Nf4 {[%emt 0:01:51]} Rd7 {[%emt 0:02:29]} 47. Nd5+ {[%emt 0:01:18]} Kf7 {[%emt 0:00:29]} 48. h4 {[%emt 0:00:16]} Ne4 {[%emt 0:00:38]} 49. Ne3 {[%emt 0:01:14]} Nf6 {[%emt 0:01:31]} 50. Kg2 {[%emt 0:00:20]} Kg7 {[%emt 0:01:38]} 51. Ra5 {[%emt 0:01:24]} Rd2 {[%emt 0:00:30]} 52. Kf3 {[%emt 0:00:31]} Rd7 {[%emt 0:00:15]} 53. Rb5 {[%emt 0:00:39]} Rf7 {[%emt 0:00:23]} 54. Kg2 {[%emt 0:00:19]} Ra7 {[%emt 0:01:03]} 55. Nc4 {[%emt 0:00:23]} Nh5 {[%emt 0:05:04]} 56. Ne5 {[%emt 0:00:19]} Re7 {[%emt 0:00:00]} 57. Kh3 {[%emt 0:01:08]} Rc7 {[%emt 0:00:00]} 58. Rb6 {[%emt 0:00:28]} Nf6 {[%emt 0:00:00]} 59. g4 {[%emt 0:01:25]} g5 {[%emt 0:01:12]} 60. h5 {[%emt 0:00:31]} Nd5 {[%emt 0:00:19]} 61. Rb3 {[%emt 0:00:35]} Nf4+ {[%emt 0:00:27]} 62. Kg3 {[%emt 0:00:20]} Re7 {[%emt 0:00:42]} 63. Nf3 {[%emt 0:00:14]} Ne2+ {[%emt 0:00:09]} 64. Kh3 {[%emt 0:00:24]} Nf4+ {[%emt 0:00:14]} 65. Kh2 {[%emt 0:00:28]} Rd7 {[%emt 0:00:19]} 66. Rb2 {[%emt 0:00:41]} Rd3 {[%emt 0:00:39]} 67. Rb7+ {[%emt 0:00:27]} Kg8 {[%emt 0:00:57]} 68. Rb8+ {[%emt 0:00:07]} Kg7 {[%emt 0:00:06]} 69. Rb7+ {[%emt 0:00:02]} Kg8 {[%emt 0:00:04]} 70. Ne5 {[%emt 0:01:00]} Rh3+ {[%emt 0:00:53]} 71. Kg1 {[%emt 0:00:06]} Rc3 {[%emt 0:00:54]} 72. f3 {[%emt 0:00:34]} Rc2 {[%emt 0:00:22]} 73. Kf1 {[%emt 0:00:53]} Rc5 {[%emt 0:00:39]} 74. Nd7 {[%emt 0:00:53]} Rc6 {[%emt 0:00:47]} 75. Ra7 {[%emt 0:00:13]} Re6 {[%emt 0:00:14]} 76. Ra3 {[%emt 0:00:38]} Rd6 {[%emt 0:00:23]} 77. Nc5 {[%emt 0:00:21]} Rc6 {[%emt 0:00:40]} 78. Ne4 {[%emt 0:00:21]} Rc7 {[%emt 0:00:27]} 79. Ng3 {[%emt 0:00:30]} Rc6 {[%emt 0:00:40]} 80. Nf5 {[%emt 0:00:17]} Re6 {[%emt 0:00:08]} 81. Ra7 {[%emt 0:00:43]} Kh8 {[%emt 0:00:22]} 82. Ne7 {[%emt 0:00:43]} Nd3 {[%emt 0:00:06]} 83. Ng6+ {[%emt 0:00:42]} Kg8 {[%emt 0:00:02]} 84. Ra3 {[%emt 0:00:32]} Re3 {[%emt 0:01:22]} 85. Ra8+ {[%emt 0:00:27]} Kg7 {[%emt 0:00:09]} 86. Kg2 {[%emt 0:00:49]} Re2+ {[%emt 0:01:23]} 87. Kg3 {[%emt 0:00:18]} Re6 {[%emt 0:00:26]} 88. Ra7+ {[%emt 0:00:20]} Kg8 {[%emt 0:00:26]} 89. Ra3 {[%emt 0:00:15]} Nc1 {[%emt 0:00:37]} 90. Kf2 {[%emt 0:00:32]} Re2+ {[%emt 0:00:15]} 91. Kf1 {[%emt 0:00:24]} Re6 {[%emt 0:00:02]} 92. Rc3 {[%emt 0:00:47]} Na2 {[%emt 0:01:07]} 93. Rc4 {[%emt 0:00:17]} Kg7 {[%emt 0:00:30]} 94. Kf2 {[%emt 0:00:37]} Kg8 {[%emt 0:00:13]} 95. Kg2 {[%emt 0:01:01]} Kg7 {[%emt 0:00:34]} 96. Kg3 {[%emt 0:00:16]} Kg8 {[%emt 0:00:32]} 97. f4 {[%emt 0:00:34]} gxf4+ {[%emt 0:00:58]} 98. Kxf4 {[%emt 0:00:13]} Rb6 {[%emt 0:00:25]} 99. Kf5 {[%emt 0:00:43]} Rb4 {[%emt 0:00:42]} 100. Rc8+ {[%emt 0:00:38]} Kg7 {[%emt 0:00:08]} 101. Rc7+ {[%emt 0:00:10]} Kg8 {[%emt 0:00:12]} 102. Ne5 {[%emt 0:00:41]} Rb6 {[%emt 0:00:01]} 103. Nd7 {[%emt 0:00:27]} Ra6 {[%emt 0:01:24]} 104. Nf6+ {[%emt 0:00:06]} Kf8 {[%emt 0:00:03]} 105. Kg6 {[%emt 0:00:07]} 1-0

[Event "Romanian Championship 2024"]
[Site "Eforie Nord"]
[Date "2024.02.27"]
[Round "5.2"]
[White "Cosma, Ioan"]
[Black "Parligras, Mircea-Emilian"]
[Result "0-1"]
[ECO "B51"]
[WhiteElo "2316"]
[BlackElo "2539"]
[Annotator "TA"]
[PlyCount "86"]
[EventDate "2024.02.24"]
[EventType "swiss"]
[EventCountry "ROU"]
[SourceTitle "playchess.com"]
[Source "ChessBase"]
[SourceQuality "1"]
[TimeControl "40/5400+30:900+30"]

{[%evp 11,86,2,12,5,0,0,0,-7,0,0,0,0,0,-18,-12,-25,-31,-79,-86,-92,-84,-85,-92,-89,-74,-75,-75,-78,-87,-74,-77,-99,-93,-93,-96,-97,-96,-103,-99,-95,-100,-98,-94,-94,-94,-137,-135,-134,-136,-146,-145,-147,-141,-137,-112,-141,-139,-142,-135,-331,-377,-406,-360,-412,-405,-570,-541,-879,-803,-754,-814,-800,-423,-1044,-893,-881,-858]} 1. e4 {[%emt 0:00:05]} c5 {[%emt 0:00:30]} 2. Nf3 {[%emt 0:00:09]} d6 {[%emt 0:00:06]} 3. Bb5+ {[%emt 0:00:11]} Nd7 {[%emt 0:00:14]} 4. d4 {[%emt 0:00:08]} cxd4 {[%emt 0:00:21]} 5. Qxd4 {[%emt 0:00:06]} a6 {[%emt 0:00:31]} 6. Bxd7+ {[%emt 0:00:09]} Bxd7 {[%emt 0:00:07]} 7. c4 {[%emt 0:00:09]} Nf6 {[%emt 0:03:30]} 8. Nc3 {[%emt 0:03:25]} g6 {[%emt 0:00:50]} 9. O-O {[%emt 0:10:43] The position is equal.} Bg7 {[%emt 0:00:09]} 10. c5 {[%emt 0:00:43]} dxc5 {[%emt 0:10:57]} 11. Qxc5 {[%emt 0:00:05]} Rc8 {[%emt 0:01:46]} 12. Qa7 {[%emt 0:11:08][%cal Of1d1]} Bc6 {[%emt 0:12:27]} 13. Ne5 {[%emt 0:09:36]} Bxe4 {[%emt 0:10:17]} 14. Rd1 {[%emt 0:10:10]} (14. Bf4 $15 Nh5 15. Rad1) 14... Qc7 $17 {[%emt 0:01:13]} 15. Bf4 {[%emt 0:12:08] [#]} Qc5 $1 {[%emt 0:01:23]} 16. Qxc5 {[%emt 0:03:09]} Rxc5 {[%emt 0:00:07]} 17. Nd7 {[%emt 0:07:37]} Rc4 {[%emt 0:18:35]} 18. Be5 {[%emt 0:05:51] Strongly threatening Nxe4.} Bc6 {[%emt 0:01:27] A strong pair of Bishops.} 19. Nxf6+ {[%emt 0:02:27]} Bxf6 {[%emt 0:11:19]} 20. Bxf6 {[%emt 0:00:23]} exf6 {[%emt 0:00:03]} 21. Nd5 {[%emt 0:03:55]} f5 {[%emt 0:01:02]} 22. b3 {[%emt 0:01:55]} Rc5 {[%emt 0:00:20]} 23. Nb4 {[%emt 0:02:26]} Bd7 {[%emt 0:01:18]} 24. Rac1 {[%emt 0:03:59]} Rxc1 {[%emt 0:00:34]} 25. Rxc1 {[%emt 0:00:04][%mdl 4096] Endgame. KRB-KRN} Ke7 {[%emt 0:03:58]} 26. f4 {[%emt 0:02:29]} a5 {[%emt 0:03:22]} 27. Nd5+ {[%emt 0:01:23]} Kd6 {[%emt 0:00:12]} 28. Ne3 {[%emt 0:02:11]} b5 {[%emt 0:05:08] Against Nc4+} 29. Rd1+ {[%emt 0:00:40]} Kc6 {[%emt 0:00:44]} 30. Rc1+ {[%emt 0:00:20]} Kb7 {[%emt 0:00:19]} 31. Kf2 {[%emt 0:01:44]} Re8 {[%emt 0:01:08]} 32. g3 {[%emt 0:01:42]} Re4 {[%emt 0:02:17]} 33. Re1 {[%emt 0:02:07]} Be6 {[%emt 0:04:07] Black is more active.} 34. Nc2 {[%emt 0:00:32]} Kb6 {[%emt 0:00:38]} 35. Rxe4 $2 {[%emt 0:00:37] Now White is beyond hope.} (35. Rd1 $17) 35... fxe4 {[%emt 0:00:02] KB-KN} 36. Ke3 {[%emt 0:01:38]} Kc5 {[%emt 0:00:05] Inhibits Nd4.} 37. Nd4 {[%emt 0:00:41]} Bd5 {[%emt 0:00:22]} 38. Nc2 {[%emt 0:01:44]} (38. g4 {was worth a try.} a4 39. bxa4 bxa4 (39... Bxa2 40. axb5 h5 41. gxh5 $16) 40. a3) 38... a4 $19 {[%emt 0:02:58] Black is clearly winning.} 39. b4+ {[%emt 0:00:26]} Kc4 {[%emt 0:00:06] [#] aiming for ...Kc3.} 40. Kd2 {[%emt 0:00:00]} Be6 {[%emt 0:00:00]} 41. g4 {[%emt 0:01:09]} e3+ {[%emt 0:05:25]} 42. Kxe3 {[%emt 0:00:35]} (42. Nxe3+ $142 Kxb4 43. Nc2+ Kc5 44. a3) 42... Kc3 {[%emt 0:00:59]} 43. Nd4 {[%emt 0:00:31]} Bxa2 {[%emt 0:01:06] Weighted Error Value: White=0.42/Black=0.13 (very precise) .  Loses game:     	White=1     	---        Mistake:       	White=2     	---        Inaccurate:     	White=2     	---        OK:         	White=10    	Black=16     Best:        	---       	Black=3      Strong:       	---       	Black=1} 0-1

[Event "Romanian Championship 2024"]
[Site "Eforie Nord"]
[Date "2024.02.27"]
[Round "5.3"]
[White "Gavrilescu, David"]
[Black "Cnejev, Vladimir-Alexandru"]
[Result "1-0"]
[ECO "C58"]
[WhiteElo "2523"]
[BlackElo "2311"]
[Annotator "TA"]
[PlyCount "83"]
[EventDate "2024.02.24"]
[EventType "swiss"]
[EventCountry "ROU"]
[SourceTitle "playchess.com"]
[Source "ChessBase"]
[SourceQuality "1"]
[TimeControl "40/5400+30:900+30"]

{[%evp 14,83,21,33,39,22,23,0,22,20,13,26,24,2,10,38,17,0,13,5,0,0,10,18,16,16,37,22,66,0,79,76,107,104,103,111,115,114,108,55,80,77,152,162,121,104,162,139,138,118,160,127,175,-73,298,272,354,335,437,445,683,689,665,510,568,547,557,568,574,569,560,556]} 1. e4 {[%emt 0:00:02]} e5 {[%emt 0:05:03]} 2. Nf3 {[%emt 0:00:07]} Nc6 {[%emt 0:00:12]} 3. Bc4 {[%emt 0:00:04]} Nf6 {[%emt 0:00:12][%cal Bg8f6,Bf6d5,Bd5f4,Bf4d3][%mdl 32]} 4. Ng5 {[%emt 0:01:03]} d5 {[%emt 0:00:20]} 5. exd5 {[%emt 0:00:05]} Na5 {[%emt 0:00:06]} 6. Bb5+ {[%emt 0:00:06]} c6 {[%emt 0:00:08]} 7. dxc6 {[%emt 0:00:06]} bxc6 {[%emt 0:00:07]} 8. Bd3 {[%emt 0:00:40]} Nd5 {[%emt 0:00:38]} 9. Nf3 {[%emt 0:00:35]} (9. Nxh7 $2 Nf4 10. Be4 Rxh7 $17) 9... Bd6 {[%emt 0:00:33]} 10. Nc3 {[%emt 0:00:18]} Nf4 {[%emt 0:00:44] The position is equal.} 11. O-O {[%emt 0:01:34]} Nxd3 {[%emt 0:00:27]} 12. cxd3 {[%emt 0:00:09][%cal Ob2b4]} O-O {[%emt 0:00:12]} 13. Re1 {[%emt 0:06:16][%cal Oc3e4]} c5 {[%emt 0:02:42]} 14. b3 {[%emt 0:09:45][%cal Oc3e4]} Nc6 {[%emt 0:04:20]} 15. Ne4 {[%emt 0:02:54]} Be7 {[%emt 0:25:38]} 16. Ba3 {[%emt 0:13:33]} Bg4 {[%emt 0:06:54]} 17. h3 {[%emt 0:05:53]} (17. Bxc5 Bxc5 18. Nxc5 Nd4 $17) 17... Bxf3 {[%emt 0:00:29]} 18. Qxf3 {[%emt 0:00:10]} Nd4 {[%emt 0:01:28]} 19. Qd1 {[%emt 0:00:24][%cal Oa1c1]} f5 {[%emt 0:03:58]} 20. Nc3 {[%emt 0:10:44]} (20. Nxc5 Qd5 21. b4 Rf6 $11) 20... Bd6 {[%emt 0:04:29]} 21. Rc1 {[%emt 0:03:10]} ({White should play} 21. Na4 $14) 21... Rc8 {[%emt 0:29:24]} (21... Qg5 $1 $11 {remains equal.}) 22. Na4 $16 {[%emt 0:18:55]} Qe7 {[%emt 0:02:48]} 23. Bb2 {[%emt 0:00:37]} e4 {[%emt 0:08:46]} 24. Bxd4 {[%emt 0:03:54]} cxd4 {[%emt 0:00:05]} 25. Rxc8 {[%emt 0:00:06]} Rxc8 {[%emt 0:00:09]} 26. dxe4 {[%emt 0:00:04]} ({White should try} 26. Nb2 $1 $16) 26... Qe5 {[%emt 0:00:57]} 27. g3 {[%emt 0:03:32][%cal Bg2g3,Bg3g4][%mdl 32] Strongly threatening Nb2.} f4 {[%emt 0:02:36] [#]} ({Better is} 27... fxe4 28. Qg4 Re8) 28. g4 $1 {[%emt 0:02:48]} g6 {[%emt 0:00:27][%cal Oc8c1]} 29. Kf1 {[%emt 0:06:56] Black must now prevent Nb2.} Qb5+ {[%emt 0:00:35]} (29... Ba3 $16 {was called for.}) 30. Qe2 {[%emt 0:04:42]} d3 {[%emt 0:00:25]} 31. Qf3 {[%emt 0:00:01]} Be5 {[%emt 0:00:33] Repels Nb2} 32. Kg2 {[%emt 0:01:03]} Rc2 {[%emt 0:00:14] [#]} (32... g5 $16 {might work better.} 33. Rd1 h6) 33. Nc3 $2 {[%emt 0:01:29]} Qa6 $2 {[%emt 0:00:13][%mdl 8192] This costs Black the game.} (33... Bxc3 $17 {and life is bright.} 34. dxc3 d2) 34. Rd1 $18 {[%emt 0:00:31]} g5 {[%emt 0:00:38]} 35. Nd5 {[%emt 0:00:18]} Qb5 {[%emt 0:00:25]} 36. h4 {[%emt 0:01:17] White is clearly winning.} h6 {[%emt 0:00:46]} (36... gxh4 $142 37. Qh3 (37. Nxf4 Rxa2 38. Nd5 Qd7 $18) 37... Bg7 38. Qxh4 (38. Nxf4 Qg5 $18) 38... Qd7) 37. hxg5 {[%emt 0:00:06]} hxg5 {[%emt 0:00:01]} 38. Qh3 {[%emt 0:00:15] Repels Qd7} Qd7 {[%emt 0:01:16]} 39. Qh5 {[%emt 0:00:54]} (39. Qxd3 {gets mated.} Qxg4+) 39... f3+ {[%emt 0:00:27]} 40. Kxf3 {[%emt 0:00:00]} Qf7+ {[%emt 0:00:00]} 41. Qxf7+ {[%emt 0:00:14]} Kxf7 {[%emt 0:00:32]} 42. Nb4 {[%emt 0:00:10][%csl LRc2,LRd3] Weighted Error Value: White=0.24 (precise) /Black=0.41.  Loses game:     	---       	Black=1      Missed win:     	White=1     	---        Mistake:       	White=2     	Black=5      Inaccurate:     	---       	Black=3      OK:         	White=19    	Black=8      Best:        	White=2     	Black=1      Strong:       	White=1     	---} 1-0